fUSD/lending_fUSD_20251019
["ID","MTS","AMOUNT","RATE_DAILY","PERIOD"]
[391827025,1760892639694,-166.89,0.00029807,2]
[391827026,1760892639703,-9238.31170197,0.00029815,2]
[391827027,1760892639715,-369.84829803,0.00029815,2]
[391827028,1760892639724,-6073.00170208,0.00029815,2]
[391827029,1760892639735,-322.42829792,0.00029815,2]
[391827030,1760892639745,-217.16164251,0.00029836,2]
[391827031,1760892639756,-500.0,0.00029845,8]
[391827032,1760892639765,-500.0,0.00029845,8]
[391827033,1760892639775,-500.0,0.00029845,8]
[391827034,1760892639784,-500.0,0.00029845,8]
[391827035,1760892639793,-500.0,0.00029845,8]
[391827036,1760892639802,-3612.46005966,0.00029846,2]
[391827037,1760892639814,-25591.62994034,0.00029846,2]
[391827038,1760892639823,-500.56534583,0.0002985,5]
[391827039,1760892639836,-159.98902124,0.0002985,5]
[391827040,1760892639846,-500.0,0.00029873,5]
[391827041,1760892639856,-500.0,0.00029873,5]
[391827042,1760892639867,-500.0,0.00029873,5]
[391827043,1760892639876,-500.0,0.00029873,5]
[391827044,1760892639886,-500.0,0.00029873,2]
[391827045,1760892639895,-155.75,0.00029887,30]
[391827046,1760892639905,-189.39,0.00029941,2]
[391827047,1760892639914,-945.08,0.00029964,7]
[391827048,1760892639923,-250.0,0.00029973,2]
[391827049,1760892639932,-603.0,0.0003,120]
[391827050,1760892639941,-170.74,0.00030033,2]
[391827051,1760892639951,-1078.22,0.00030035,2]
[391827052,1760892639961,-250.0,0.00030184,7]
[391827053,1760892639971,-265.44,0.00030205,2]
[391827054,1760892639982,-945.08,0.00030238,7]
[391827055,1760892639992,-5513.0,0.000303,5]
[391827056,1760892640002,-1000.0,0.00030352,2]
[391827057,1760892640012,-281.85,0.00030381,2]
[391827058,1760892640021,-16388.6,0.00030399,2]
[391827059,1760892640031,-1000.0,0.00030421,5]
[391827060,1760892640042,-1000.0,0.00030421,5]
[391827061,1760892640052,-1000.0,0.00030421,2]
[391827062,1760892640063,-1000.0,0.00030434,2]
[391827063,1760892640072,-1255.0,0.000305,2]
[391827064,1760892640081,-200.0,0.00030503,2]
[391827065,1760892640091,-945.08,0.00030512,7]
[391827066,1760892640101,-500.0,0.0003062,8]
[391827067,1760892640112,-500.0,0.0003062,8]
[391827068,1760892640121,-1335.22,0.0003062,8]
[391827069,1760892640132,-500.0,0.0003062,8]
[391827070,1760892640142,-500.0,0.0003062,8]
[391827071,1760892640153,-533.34,0.0003062,7]
[391827072,1760892640163,-500.0,0.0003062,8]
[391827073,1760892640173,-503.64389533,0.0003062,2]
[391827074,1760892640183,-500.0,0.0003062,8]
[391827075,1760892640193,-500.0,0.0003062,8]
[391827076,1760892640204,-500.0,0.0003062,8]
[391827077,1760892640222,-1000.0,0.00030656,2]
[391827078,1760892640234,-1000.0,0.00030742,2]
[391827079,1760892640244,-945.08,0.00030786,7]
[391827080,1760892640255,-500.0,0.00030839,8]
[391827081,1760892640265,-500.0,0.00030839,8]
[391827082,1760892640275,-500.0,0.00030839,8]
[391827083,1760892640286,-500.0,0.00030839,8]
[391827084,1760892640295,-2566.58784615,0.0003084,2]
[391827085,1760892640304,-1000.0,0.00030843,2]
[391827086,1760892640314,-1000.0,0.00030867,2]
[391827087,1760892640324,-1000.0,0.00030917,2]
[391827088,1760892640333,-207.06072452,0.00030917,2]
[391827089,1760892640343,-320.5756937,0.00030968,5]
[391827090,1760892640353,-500.0,0.00030968,2]
[391827091,1760892640362,-157.0,0.00031,120]
[391827092,1760892640372,-155.0,0.00031,120]
[391827093,1760892640382,-1000.0,0.00031015,2]
[391827094,1760892640391,-500.0,0.0003105,5]
[391827095,1760892640401,-500.0,0.0003105,5]
[391827096,1760892640412,-200.0,0.0003105,5]
[391827097,1760892640424,-994.37,0.00031056,120]
[391827098,1760892640433,-945.08,0.0003106,7]
[391827099,1760892640442,-1000.0,0.00031062,2]
[391827100,1760892640453,-1000.0,0.00031312,2]
[391827101,1760892640463,-945.08,0.00031334,7]
[391827102,1760892640472,-1000.0,0.000314,2]
[391827103,1760892640482,-1000.0,0.000314,2]
[391827104,1760892640494,-1000.0,0.000314,2]
[391827105,1760892640504,-109.50632631,0.00031404,2]
[391827106,1760892640517,-269.36548125,0.00031404,2]
[391827107,1760892640530,-621.12819244,0.00031404,2]
[391827108,1760892640539,-156.99,0.0003153,2]
[391827109,1760892640548,-875.99008028,0.00031608,7]
[391827110,1760892640559,-69.08991972,0.00031608,7]
[391827111,1760892640569,-1000.0,0.00031615,2]
[391827112,1760892640579,-1000.0,0.00031647,2]
[391827113,1760892640589,-711.50601134,0.00031659,2]
[391827114,1760892640601,-89.47502043,0.00031659,2]
[391827115,1760892640611,-790.55509737,0.00031667,2]
[391827116,1760892640632,-209.44490263,0.00031667,2]
[391827117,1760892640642,-617.0,0.00031705,5]
[391827118,1760892640652,-1000.0,0.00031705,2]
[391827119,1760892640663,-1000.0,0.00031719,2]
[391827120,1760892640673,-400.0,0.00031735,5]
[391827121,1760892640684,-500.0,0.00031767,8]
[391827122,1760892640694,-500.0,0.00031767,8]
[391827123,1760892640707,-500.0,0.00031767,8]
[391827124,1760892640719,-514.40294697,0.00031767,8]
[391827125,1760892640729,-500.0,0.00031767,8]
[391827126,1760892640739,-1000.0,0.00031778,2]
[391827127,1760892640750,-1000.0,0.000318,2]
[391827128,1760892640760,-1226.0,0.000318,2]
[391827129,1760892640770,-1000.0,0.000318,2]
[391827130,1760892640785,-155.75,0.00031815,30]
[391827131,1760892640796,-945.14,0.00031882,7]
[391827132,1760892640806,-1000.0,0.00031951,2]
[391827133,1760892640816,-500.0,0.00031973,5]
[391827134,1760892640827,-1000.0,0.00031996,2]
[391827135,1760892640838,-1000.0,0.00032,2]
[391827136,1760892640848,-1000.0,0.00032,2]
[391827137,1760892640860,-165.31326568,0.00032,2]
[391827138,1760892640870,-6842.20866689,0.00032,30]
[391827139,1760892640892,-2157.79133311,0.00032,30]
[391827140,1760892640903,-1000.0,0.00032,2]
[391827141,1760892640913,-1000.0,0.00032,2]
[391827142,1760892640925,-453.97406695,0.00032,2]
[391827143,1760892640938,-546.02593305,0.00032,2]
[391827144,1760892640948,-234.61291496,0.00032,2]
[391827145,1760892641285,-765.18050016,0.00032,2]
[391827146,1760892641297,-0.20658488,0.00032,2]
[391827147,1760892641307,-1000.0,0.00032,2]
[391827148,1760892641317,-1000.0,0.00032,2]
[391827149,1760892641328,-180.44341512,0.0003212,2]
[391827153,1760892642858,-151.0,0.00030503,2]
[391827154,1760892642867,-208.36285139,0.0003212,2]
[391827155,1760892642879,-611.19373349,0.0003212,2]
[391827156,1760892642889,-1000.0,0.00032132,2]
[391827157,1760892642898,-1000.0,0.00032156,2]
[391827158,1760892642908,-1199.37,0.00032234,2]
[391827159,1760892642918,-1199.86,0.00032234,2]
[391827160,1760892642927,-1199.86,0.00032234,2]
[391827161,1760892642937,-1199.86,0.00032234,2]
[391827162,1760892642946,-1199.86,0.00032234,2]
[391827163,1760892642955,-1199.86,0.00032234,2]
[391827164,1760892642964,-1199.86,0.00032234,2]
[391827165,1760892642973,-1199.86,0.00032234,2]
[391827166,1760892642983,-1000.0,0.00032238,2]
[391827167,1760892642993,-1000.0,0.00032278,2]
[391827169,1760892643002,-4688.69026631,0.00032308,2]
[391827171,1760892643011,-20885.79775126,0.00032318,2]
[391827172,1760892643020,-1000.0,0.00032337,2]
[391827173,1760892643030,-1195.50455797,0.0003238,15]
[391827174,1760892643039,-184.67335692,0.00032413,2]
[391827175,1760892643048,-600.0,0.0003242,5]
[391827176,1760892643057,-1000.0,0.00032473,2]
[391827177,1760892643067,-4688.69026631,0.00032528,2]
[391827178,1760892643076,-156.99,0.00032557,2]
[391827179,1760892643085,-2393.7155403,0.00032559,2]
[391827180,1760892643094,-1000.0,0.00032597,2]
[391827181,1760892643103,-1000.0,0.00032609,2]
[391827182,1760892643112,-1497.8327206,0.00032632,2]
[391827183,1760892643122,-4688.69026631,0.00032639,2]
[391827184,1760892643130,-9377.38053262,0.00032649,2]
[391827185,1760892643140,-184.67335692,0.00032692,2]
[391827186,1760892643149,-2393.71554022,0.00032729,2]
[391827187,1760892643158,-4688.69026631,0.00032749,2]
[391827188,1760892643167,-170.74,0.00032763,2]
[391827189,1760892643175,-1000.0,0.00032769,2]
[391827190,1760892643184,-1000.0,0.00032796,2]
[391827191,1760892643194,-1000.0,0.0003281,2]
[391827192,1760892643203,-4688.69026631,0.0003287,2]
[391827193,1760892643213,-150.0,0.00032883,2]
[391827194,1760892643222,-2393.71554022,0.00032899,2]
[391827195,1760892643232,-150.0,0.00032902,2]
[391827196,1760892643241,-1425.0,0.0003293,2]
[391827197,1760892643252,-162.58100459,0.00032935,15]
[391827198,1760892643263,-4688.69026631,0.00032961,2]
[391827199,1760892643272,-1000.0,0.00032971,2]
[391827200,1760892643282,-184.67335692,0.00032971,2]
[391827201,1760892643291,-164.0,0.00033,30]
[391827202,1760892643301,-1000.0,0.00033,7]
[391827203,1760892643312,-1000.0,0.00033008,2]
[391827204,1760892643322,-4688.69026631,0.00033031,2]
[391827205,1760892643332,-500.0,0.00033035,8]
[391827206,1760892643341,-500.0,0.00033035,8]
[391827207,1760892643352,-500.0,0.00033035,8]
[391827208,1760892643363,-500.0,0.00033035,8]
[391827209,1760892643373,-4688.69026631,0.00033036,2]
[391827210,1760892643383,-2500.0,0.0003304,5]
[391827211,1760892643394,-2500.0,0.0003304,5]
[391827212,1760892643406,-1335.22,0.00033065,8]
[391827213,1760892643418,-2393.71554022,0.00033068,2]
[391827214,1760892643427,-4688.69026631,0.0003308,2]
[391827215,1760892643437,-200.0,0.00033105,5]
[391827216,1760892643447,-4688.69026631,0.00033145,2]
[391827217,1760892643456,-1425.0,0.00033145,2]
[391827218,1760892643465,-1000.0,0.00033152,2]
[391827219,1760892643475,-1360.17645826,0.00033164,5]
[391827220,1760892643485,-191.78,0.00033165,2]
[391827221,1760892643494,-1425.0,0.00033178,2]
[391827222,1760892643504,-4688.69026631,0.00033203,2]
[391827223,1760892643516,-500.0,0.00033213,5]
[391827224,1760892643525,-500.0,0.00033213,8]
[391827225,1760892643536,-500.0,0.00033213,8]
[391827226,1760892643545,-500.0,0.00033213,8]
[391827227,1760892643555,-500.0,0.00033213,8]
[391827228,1760892643565,-533.34,0.00033213,7]
[391827229,1760892643574,-500.0,0.00033213,8]
[391827230,1760892643584,-500.0,0.00033213,8]
[391827231,1760892643594,-500.0,0.00033213,8]
[391827232,1760892643605,-500.0,0.00033213,8]
[391827233,1760892643614,-500.0,0.00033216,8]
[391827234,1760892643624,-500.0,0.00033216,8]
[391827235,1760892643633,-500.0,0.00033216,8]
[391827236,1760892643643,-500.0,0.00033216,8]
[391827237,1760892643654,-1000.0,0.00033217,2]
[391827238,1760892643664,-2393.71554022,0.00033238,2]
[391827239,1760892643673,-184.67335692,0.0003325,2]
[391827240,1760892643682,-150.0,0.00033293,2]
[391827241,1760892643692,-4688.69026631,0.00033318,2]
[391827242,1760892643701,-1425.0,0.00033343,2]
[391827243,1760892643710,-1425.0,0.00033378,2]
[391827244,1760892643719,-313.85355384,0.00033399,2]
[391827245,1760892643729,-1000.0,0.000334,7]
[391827246,1760892643738,-1425.0,0.00033403,2]
[391827247,1760892643747,-2393.71554022,0.00033408,2]
[391827248,1760892643757,-1000.0,0.00033418,2]
[391827249,1760892643766,-1425.0,0.00033424,2]
[391827250,1760892643775,-150.0,0.00033437,2]
[391827251,1760892643785,-1000.0,0.00033441,2]
[391827252,1760892643794,-4688.69026631,0.00033452,2]
[391827253,1760892643803,-4688.69026631,0.00033463,2]
[391827254,1760892643812,-1000.0,0.00033464,2]
[391827255,1760892643821,-150.0,0.00033466,2]
[391827256,1760892643830,-1425.0,0.00033468,2]
[391827257,1760892643839,-150.0,0.00033478,2]
[391827258,1760892643848,-150.0,0.00033488,2]
[391827259,1760892643857,-4688.69026631,0.00033494,2]
[391827260,1760892643866,-150.0,0.00033495,2]
[391827261,1760892643875,-1425.0,0.00033498,2]
[391827262,1760892643884,-1425.0,0.00033505,2]
[391827263,1760892643893,-1000.0,0.00033526,2]
[391827264,1760892643902,-184.67335692,0.00033529,2]
[391827265,1760892643911,-1425.0,0.00033538,2]
[391827266,1760892643920,-1425.0,0.00033543,2]
[391827267,1760892643929,-4688.69026631,0.00033554,2]
[391827268,1760892643938,-150.0,0.00033559,2]
[391827269,1760892643947,-150.0,0.00033565,2]
[391827270,1760892643956,-150.0,0.00033573,2]
[391827271,1760892643965,-1425.0,0.00033576,2]
[391827272,1760892643974,-1425.0,0.00033577,2]
[391827273,1760892643983,-2393.71554022,0.00033578,2]
[391827274,1760892643992,-150.0,0.00033581,2]
[391827275,1760892644001,-150.0,0.00033584,2]
[391827276,1760892644011,-4688.69026631,0.00033594,2]
[391827277,1760892644021,-1425.0,0.00033603,2]
[391827278,1760892644032,-1000.0,0.00033604,2]
[391827279,1760892644041,-961.34279264,0.00033623,5]
[391827280,1760892644050,-1425.0,0.00033629,2]
[391827281,1760892644060,-1425.0,0.00033646,2]
[391827282,1760892644071,-4688.69026631,0.00033651,2]
[391827283,1760892644081,-1425.0,0.00033651,2]
[391827284,1760892644091,-1425.0,0.00033659,2]
[391827285,1760892644101,-150.0,0.00033666,2]
[391827286,1760892644111,-1000.0,0.00033689,2]
[391827287,1760892644121,-154.31916642,0.00033721,2]
[391827288,1760892644131,-261.64,0.00033723,2]
[391827289,1760892644140,-155.75,0.00033742,30]
[391827290,1760892644150,-2393.71554022,0.00033747,2]
[391827291,1760892644159,-4688.69026631,0.00033751,2]
[391827292,1760892644167,-4688.69026631,0.00033752,2]
[391827293,1760892644177,-150.0,0.00033755,2]
[391827294,1760892644189,-914.33440645,0.00033768,2]
[391827295,1760892644200,-1425.0,0.00033788,2]
[391827296,1760892644211,-1000.0,0.000338,7]
[391827297,1760892644221,-4688.69026631,0.00033805,2]
[391827298,1760892644231,-184.67335692,0.00033808,2]
[391827299,1760892644242,-1425.0,0.00033816,2]
[391827300,1760892644251,-500.0,0.00033824,8]
[391827301,1760892644261,-500.0,0.00033824,8]
[391827302,1760892644270,-500.0,0.00033824,8]
[391827303,1760892644280,-220.5259982,0.00033824,8]
[391827304,1760892644289,-150.0,0.00033863,2]
[391827305,1760892644300,-4688.69026631,0.00033892,2]
[391827306,1760892644309,-1425.0,0.00033892,2]
[391827307,1760892644319,-1425.0,0.00033902,2]
[391827308,1760892644328,-150.0,0.00033903,2]
[391827309,1760892644338,-1000.0,0.0003391,2]
[391827310,1760892644348,-4688.69026631,0.00033912,2]
[391827311,1760892644357,-2393.71554022,0.00033917,2]
[391827312,1760892644366,-1425.0,0.00033919,2]
[391827313,1760892644376,-1425.0,0.00033922,2]
[391827314,1760892644385,-1000.0,0.00033929,2]
[391827315,1760892644394,-150.0,0.00033946,2]
[391827316,1760892644405,-1000.0,0.00033953,2]
[391827317,1760892644416,-4688.69026631,0.00033964,2]
[391827318,1760892644426,-1425.0,0.00033974,2]
[391827319,1760892644435,-150.0,0.00033974,2]
[391827320,1760892644444,-4688.69026631,0.00033976,2]
[391827321,1760892644453,-150.0,0.00033979,2]
[391827322,1760892644462,-1425.0,0.00033982,2]
[391827323,1760892644471,-1425.0,0.00033984,2]
[391827324,1760892644481,-1000.0,0.00033986,2]
[391827325,1760892644491,-4688.69026631,0.0003399,2]
[391827326,1760892644501,-4688.69026631,0.00033998,2]
[391827327,1760892644511,-4539.74564636,0.00034,30]
[391827328,1760892644520,-5000.0,0.00034,30]
[391827329,1760892644529,-1000.0,0.00034,2]
[391827330,1760892644538,-619.04536191,0.00034,2]
[391827331,1760892644547,-1425.0,0.00034001,2]
[391827332,1760892644556,-1335.22,0.00034013,8]
[391827333,1760892644566,-1425.0,0.00034014,2]
[391827334,1760892644576,-7612.42389093,0.00034018,2]
[391827335,1760892644590,-1000.0,0.00034019,2]
[391827336,1760892644599,-1425.0,0.00034025,2]
[391827337,1760892644608,-9377.38053262,0.00034028,2]
[391827338,1760892644618,-7612.42389093,0.00034028,2]
[391827339,1760892644628,-9377.38053262,0.00034029,2]
[391827340,1760892644637,-7612.42389093,0.0003403,2]
[391827341,1760892644647,-1425.0,0.0003404,2]
[391827342,1760892644657,-4688.69026631,0.0003405,2]
[391827343,1760892644784,-150.0,0.00034055,2]
[391827344,1760892644795,-4688.69026631,0.00034055,2]
[391827345,1760892644804,-7612.42389093,0.00034057,2]
[391827346,1760892644813,-15224.8477819,0.0003406,2]
[391827347,1760892644822,-19584.5486778,0.00034064,33]
[391827348,1760892644832,-757.95559706,0.00034064,2]
[391827349,1760892644842,-7612.42389093,0.00034067,2]
[391827350,1760892644851,-9377.38053262,0.00034067,2]
[391827351,1760892644861,-1425.0,0.00034068,2]
[391827352,1760892644870,-4688.69026631,0.0003407,2]
[391827353,1760892644880,-28132.1415979,0.0003407,2]
[391827354,1760892644889,-170.99422439,0.00034073,5]
[391827355,1760892644898,-500.0,0.00034073,5]
[391827356,1760892644907,-500.0,0.00034073,5]
[391827357,1760892644916,-500.0,0.00034073,5]
[391827358,1760892644925,-757.95559705,0.00034076,2]
[391827359,1760892644938,-1000.0,0.00034076,2]
[391827360,1760892644947,-1425.0,0.00034077,2]
[391827361,1760892644956,-500.0,0.0003408,8]
[391827362,1760892644965,-500.0,0.0003408,8]
[391827363,1760892644974,-500.0,0.0003408,8]
[391827364,1760892644983,-500.0,0.0003408,8]
[391827365,1760892644992,-500.0,0.0003408,8]
[391827366,1760892645001,-500.0,0.0003408,8]
[391827367,1760892645011,-500.0,0.0003408,8]
[391827368,1760892645022,-500.0,0.0003408,8]
[391827369,1760892645031,-533.34,0.0003408,7]
[391827370,1760892645040,-500.0,0.0003408,8]
[391827371,1760892645049,-500.0,0.0003408,8]
[391827372,1760892645058,-500.0,0.0003408,8]
[391827373,1760892645067,-500.0,0.0003408,8]
[391827374,1760892645076,-1425.0,0.00034082,2]
[391827375,1760892645086,-1000.0,0.00034085,2]
[391827376,1760892645095,-757.95559705,0.00034087,2]
[391827377,1760892645104,-184.67335692,0.00034087,2]
[391827378,1760892645114,-2393.71554022,0.00034087,2]
[391827379,1760892645123,-535.7576566,0.00034087,2]
[391827380,1760892645132,-394.71096586,0.00034087,2]
[391827381,1760892645141,-370.58531765,0.00034087,2]
[391827382,1760892645151,-7612.42389093,0.00034089,2]
[391827383,1760892645160,-98961.5105821,0.0003409,2]
[391827384,1760892645169,-183.4671138,0.00034099,30]
[391827385,1760892645178,-500.0,0.00034099,8]
[391827386,1760892645187,-500.0,0.00034099,8]
[391827387,1760892645197,-337.61033434,0.00034099,8]
[391827388,1760892645207,-500.0,0.00034099,8]
[391827389,1760892645216,-500.0,0.00034099,8]
[391827390,1760892645227,-500.0,0.00034099,8]
[391827391,1760892645236,-500.0,0.00034099,8]
[391827392,1760892645247,-500.0,0.00034099,8]
[391827393,1760892645256,-500.0,0.00034099,8]
[391827394,1760892645265,-1335.22,0.00034099,8]
[391827395,1760892645275,-500.0,0.00034099,8]
[391827396,1760892645286,-500.0,0.00034099,8]
[391827397,1760892645296,-666.0,0.00034099,10]
[391827398,1760892645306,-533.34,0.00034099,7]
[391827399,1760892645319,-500.0,0.00034099,8]
[391827400,1760892645329,-500.0,0.00034099,8]
[391827401,1760892645339,-500.0,0.00034099,8]
[391827402,1760892645348,-500.0,0.00034099,8]
[391827403,1760892645358,-161.0,0.000341,30]
[391827404,1760892645367,-160.0,0.000341,120]
[391827405,1760892645376,-190681.09032267,0.000341,2]
[391827406,1760892645386,-157.0,0.000341,120]
[391827407,1760892645396,-5800.0,0.000341,2]
[391827408,1760892645405,-1000.0,0.00034104,2]
[391827409,1760892645419,-1425.0,0.00034108,2]
[391827410,1760892645429,-11619.00311526,0.00034139,2]
[391827413,1760892645665,-512.700971,0.00034139,2]
[391827414,1760892645688,-3093.14369564,0.00034139,2]
[391827415,1760892645697,-1000.0,0.00034146,2]
[391827416,1760892645707,-500.0,0.00034147,8]
[391827417,1760892645716,-500.0,0.00034147,8]
[391827418,1760892645725,-500.0,0.00034147,8]
[391827419,1760892645735,-244.45976314,0.00034147,8]
[391827420,1760892645747,-255.54023686,0.00034147,8]
[391827421,1760892645756,-533.34,0.00034147,7]
[391827422,1760892645765,-500.0,0.00034147,8]
[391827423,1760892645775,-500.0,0.00034147,8]
[391827424,1760892645785,-500.0,0.00034147,8]
[391827425,1760892645794,-500.0,0.00034147,8]
[391827426,1760892645803,-500.0,0.00034148,8]
[391827427,1760892645813,-500.0,0.00034148,8]
[391827428,1760892645823,-500.0,0.00034148,8]
[391827429,1760892645832,-10000.0,0.00034149,30]
[391827430,1760892645841,-10000.0,0.00034149,30]
[391827431,1760892645850,-921.46684409,0.00034149,30]
[391827432,1760892645862,-9078.53315591,0.00034149,30]
[391827433,1760892645872,-2377.35,0.00034149,30]
[391827434,1760892645882,-1335.22,0.0003415,8]
[391827435,1760892645892,-1621.63267101,0.0003415,2]
[391827436,1760892646146,-1500.0,0.0003415,2]
[391827437,1760892646157,-536.47377775,0.0003415,2]
[391827438,1760892646168,-444.52577509,0.0003415,2]
[391827439,1760892646183,-418.06931013,0.0003415,2]
[391827440,1760892646194,-3091.72235695,0.0003415,2]
[391827441,1760892646203,-722.18774172,0.00034151,2]
[391827463,1760892661961,200.0,0.00034164,120]
[391827464,1760892725615,250.0,0.00034164,30]
[391827465,1760892725650,151.0,0.00034164,30]
[391827466,1760892726242,250.0,0.00034164,30]
[391827467,1760892726274,151.0,0.00034164,30]
[391827468,1760892726849,250.0,0.00034164,30]
[391827469,1760892726883,151.0,0.00034164,30]
[391827470,1760892727501,151.0,0.00034164,30]
[391827471,1760892727532,250.0,0.00034164,30]
[391827472,1760892728128,151.0,0.00034164,30]
[391827473,1760892728169,250.0,0.00034164,30]
[391827474,1760892728744,151.0,0.00034164,30]
[391827475,1760892728781,250.0,0.00034164,30]
[391827476,1760892729371,151.0,0.00034164,30]
[391827477,1760892729457,200.0,0.00034164,30]
[391827478,1760892729971,151.0,0.00034164,30]
[391827479,1760892730567,151.0,0.00034164,30]
[391827480,1760892730796,333.64663694,0.00034164,30]
[391827481,1760892731197,151.0,0.00034164,30]
[391827482,1760892731855,151.0,0.00034164,30]
[391827483,1760892731998,200.0,0.00034164,30]
[391827484,1760892732491,151.0,0.00034164,30]
[391827485,1760892732700,207.4,0.00034164,50]
[391827486,1760892733115,151.0,0.00034164,30]
[391827487,1760892733349,215.0738,0.00034164,60]
[391827488,1760892733964,223.0315306,0.00034164,49]
[391827489,1760892734728,231.28369723,0.00034164,58]
[391827490,1760892734942,200.0,0.00034164,30]
[391827491,1760892735408,239.84119403,0.00034164,55]
[391827492,1760892736233,248.71531821,0.00034164,42]
[391827493,1760892736650,257.91778498,0.00034164,48]
[391827495,1760892804424,488.40694444,0.00034164,30]
[391827496,1760892807086,1091.0,0.00034164,30]
[391827497,1760892962050,200.0,0.00034164,120]
[391827500,1760893025246,226.69535186,0.00034164,30]
[391827513,1760893261659,200.0,0.00034171,120]
[391827528,1760893561699,200.0,0.00034171,120]
[391827529,1760893567880,15271.385883,7.945e-05,2]
[391827537,1760893660673,-300.0,0.00027632,120]
[391827538,1760893660953,-195.0,0.00027864,120]
[391827539,1760893660984,-300.0,0.00028076,120]
[391827540,1760893661025,-195.0,0.0003014,120]
[391827541,1760893661054,-300.0,0.0003014,120]
[391827542,1760893661083,-2500.0,0.0003014,120]
[391827543,1760893661111,-300.0,0.0003014,120]
[391827544,1760893661139,-166.66,0.00030466,30]
[391827545,1760893661166,-166.66,0.00031107,30]
[391827546,1760893661193,-166.66,0.00031748,30]
[391827547,1760893661221,-1500.0,0.00031812,120]
[391827548,1760893661262,-166.66,0.0003239,30]
[391827549,1760893661292,-1436.52,0.00032807,120]
[391827550,1760893661321,-656.32,0.00032877,120]
[391827551,1760893661349,-166.66,0.00033031,30]
[391827552,1760893661377,-1199.86,0.00033378,30]
[391827553,1760893661403,-1199.86,0.00033378,30]
[391827554,1760893661430,-1199.86,0.00033378,30]
[391827555,1760893661458,-1193.49,0.00033378,30]
[391827556,1760893661489,-1199.86,0.00033378,30]
[391827557,1760893661520,-1199.86,0.00033378,30]
[391827558,1760893661548,-1199.86,0.00033378,30]
[391827559,1760893661577,-166.66,0.00033672,30]
[391827560,1760893661605,-1000.0,0.00033961,120]
[391827561,1760893661635,-1199.86,0.00034,30]
[391827562,1760893661663,-1199.86,0.00034,30]
[391827563,1760893661691,-151.0,0.00034021,30]
[391827564,1760893661723,-151.0,0.00034021,30]
[391827565,1760893661755,-151.0,0.00034021,30]
[391827566,1760893661785,-153.055421,0.00034032,30]
[391827567,1760893661815,-151.0,0.00034032,30]
[391827568,1760893661844,-151.0,0.00034032,30]
[391827569,1760893661873,-151.0,0.00034046,30]
[391827570,1760893661902,-213.927255,0.00034046,30]
[391827571,1760893661931,-151.0,0.00034051,30]
[391827572,1760893661960,-151.0,0.00034051,30]
[391827573,1760893661993,-151.0,0.00034054,30]
[391827574,1760893662024,-267.78911881,0.00034054,30]
[391827575,1760893662053,-151.0,0.00034054,30]
[391827576,1760893662085,-731.138629,0.00034061,30]
[391827577,1760893662117,-731.138629,0.00034061,30]
[391827578,1760893662147,-731.138629,0.00034061,30]
[391827579,1760893662176,-731.138629,0.00034061,30]
[391827580,1760893662205,-151.0,0.00034061,30]
[391827581,1760893662232,-151.0,0.00034064,30]
[391827582,1760893662262,-297.0,0.00034064,30]
[391827583,1760893662290,-284.057623,0.00034065,30]
[391827584,1760893662318,-151.0,0.00034065,30]
[391827585,1760893662346,-151.0,0.00034077,30]
[391827586,1760893662374,-151.0,0.00034077,30]
[391827587,1760893662408,-151.0,0.00034078,30]
[391827588,1760893662436,-198.637125,0.00034079,30]